fUSD/lending_fUSD_20250422
["ID","MTS","AMOUNT","RATE_DAILY","PERIOD"]
[358642433,1745331046561,-816.57693225,0.00039726,15]
[358642434,1745331046571,-816.57693225,0.00039726,15]
[358642435,1745331046582,-816.57693225,0.00039726,15]
[358642436,1745331046592,-816.57693225,0.00039726,15]
[358642437,1745331046603,-816.57693225,0.00039726,15]
[358642438,1745331046613,-816.57693225,0.00039726,15]
[358642439,1745331046624,-816.57693225,0.00039726,15]
[358642440,1745331046634,-816.57693225,0.00039726,15]
[358642441,1745331046644,-816.57693225,0.00039726,15]
[358642443,1745331046653,-816.57693225,0.00039726,15]
[358642444,1745331046662,-816.57693225,0.00039726,15]
[358642446,1745331046674,-816.57693224,0.00039726,15]
[358642448,1745331046685,-816.57693224,0.00039726,15]
[358642450,1745331046694,-816.57693224,0.00039726,15]
[358642452,1745331046704,-816.57693224,0.00039726,15]
[358642454,1745331046713,-816.57693224,0.00039726,15]
[358642456,1745331046724,-816.57693224,0.00039726,15]
[358642458,1745331046733,-816.57693224,0.00039726,15]
[358642460,1745331046743,-816.57693224,0.00039726,15]
[358642462,1745331046753,-816.57693224,0.00039726,15]
[358642464,1745331046763,-816.57693224,0.00039726,15]
[358642466,1745331046772,-816.57693224,0.00039726,15]
[358642469,1745331046782,-816.57693224,0.00039726,15]
[358642471,1745331046792,-979.8923187,0.00039726,15]
[358642472,1745331046803,-2000.0,0.00039746,8]
[358642473,1745331046812,-266.60328104,0.000398,2]
[358642475,1745331046822,-1810.53953004,0.000398,2]
[358642477,1745331046831,-1776.71709985,0.000398,2]
[358642479,1745331046841,-8962.77779489,0.00039999,7]
[358642481,1745331046851,-1235.44593755,0.0004,10]
[358642483,1745331046860,-1220.63,0.0004,120]
[358642485,1745331046870,-162.95,0.0004,30]
[358642486,1745331046880,-162.95,0.0004,30]
[358642489,1745331046891,-1726.0,0.0004,30]
[358642490,1745331046902,-1106.2,0.00040174,2]
[358642492,1745331046911,-4782.78,0.000403,14]
[358642494,1745331046922,-563.3857,0.00040888,7]
[358642496,1745331046931,-169.01573,0.00040888,30]
[358642498,1745331046941,-22066.6,0.000409,14]
[358642500,1745331046951,-1000.0,0.00041,5]
[358642502,1745331046960,-1004.0,0.00041,5]
[358642504,1745331046970,-170.0,0.00041,14]
[358642506,1745331046980,-166.0,0.00041,14]
[358642508,1745331046989,-5213.18654351,0.00041,2]
[358642571,1745331047631,-450.319,0.00041,2]
[358642619,1745331048265,-0.01684145,0.00041,2]
[358642626,1745331048341,677.83,0.00018888,2]
[358642627,1745331048367,1305.458406,0.00018888,2]
[358642652,1745331048903,-1737.0,0.0002,2]
[358642653,1745331048913,-470.66500004,0.00021467,2]
[358642654,1745331049103,-2328.93314309,0.00021467,2]
[358642655,1745331049114,-2223.62129607,0.00041,2]
[358642656,1745331049967,-169.72532864,0.000199,2]
[358642657,1745331049978,-7371.65113912,0.00041,2]
[358642658,1745331049990,-268.987887,0.00041,2]
[358642659,1745331050002,-318.8803487,0.00041,2]
[358642660,1745331050014,-297.32939999,0.00041,2]
[358642661,1745331050027,-421.00754416,0.00041,2]
[358642662,1745331050036,-150.5,0.00041066,120]
[358642663,1745331050048,-150.5,0.00041066,120]
[358642664,1745331050058,-166.0,0.0004107,120]
[358642665,1745331050068,-150.5,0.00041076,120]
[358642666,1745331050079,-150.5,0.00041076,120]
[358642667,1745331050088,-166.0,0.0004108,120]
[358642668,1745331050098,-150.5,0.00041086,120]
[358642669,1745331050108,-150.5,0.00041086,120]
[358642670,1745331050118,-169.01573,0.00041088,30]
[358642671,1745331050128,-166.0,0.0004109,120]
[358642672,1745331050139,-441.17,0.00041095,120]
[358642673,1745331050149,-998.75800124,0.00041096,3]
[358642674,1745331050159,-307.47062336,0.00041096,10]
[358642675,1745331050169,-217.23585791,0.00041096,2]
[358642676,1745331050180,-205.51909681,0.00041096,60]
[358642677,1745331050189,-170.0,0.00041096,10]
[358642678,1745331050207,-293.09,0.00041268,120]
[358642679,1745331050223,-150.5,0.00041278,120]
[358642680,1745331050233,-876.0,0.00041282,2]
[358642681,1745331050245,-169.01573,0.00041288,30]
[358642682,1745331050255,-167.36377,0.00041376,60]
[358642683,1745331050266,-169.01573,0.00041488,30]
[358642684,1745331050277,-468.0,0.00041562,5]
[358642685,1745331050287,-685.65,0.00041619,30]
[358642686,1745331050298,-169.01573,0.00041688,30]
[358642687,1745331050308,-169.01573,0.00041888,30]
[358642688,1745331050318,-5917.27228961,0.000419,60]
[358642689,1745331050338,-2520.755,0.000419,60]
[358642690,1745331050352,-13628.57271039,0.000419,60]
[358642691,1745331050363,-4782.78,0.000419,14]
[358642692,1745331050374,-1000.0,0.00042,9]
[358642693,1745331050386,-1000.0,0.00042,9]
[358642694,1745331050397,-1000.0,0.00042,9]
[358642695,1745331050407,-1018.0,0.00042,9]
[358642696,1745331050418,-1000.0,0.00042,7]
[358642697,1745331050431,-1000.0,0.00042,6]
[358642698,1745331050440,-1000.0,0.00042,5]
[358642699,1745331050451,-1000.0,0.00042,9]
[358642700,1745331050461,-151.0,0.00042,14]
[358642701,1745331050471,-210.791317,0.00042,14]
[358642702,1745331050481,-169.01573,0.00042088,30]
[358642703,1745331050491,-5564.0,0.000421,3]
[358642704,1745331050502,-169.01573,0.00042288,30]
[358642705,1745331050513,-1431.418,0.00042415,64]
[358642706,1745331050524,-1106.2,0.00042438,2]
[358642707,1745331050534,-441.17,0.00042465,120]
[358642708,1745331050544,-169.01573,0.00042488,30]
[358642709,1745331050554,-169.01573,0.00042688,30]
[358642710,1745331050564,-169.01573,0.00042888,30]
[358642711,1745331050575,-268.19385748,0.000429,7]
[358642712,1745331050585,-1000.0,0.00043,12]
[358642713,1745331050595,-1000.0,0.00043,12]
[358642714,1745331050605,-1000.0,0.00043,12]
[358642715,1745331050615,-1000.0,0.00043,10]
[358642716,1745331050626,-1000.0,0.00043,10]
[358642717,1745331050636,-4782.78,0.00043,14]
[358642718,1745331050652,-307.09,0.00043,120]
[358642719,1745331050664,-169.01573,0.00043088,30]
[358642720,1745331050674,-3149.21717735,0.000431,60]
[358642721,1745331050690,-4562.71537381,0.000431,60]
[358642722,1745331050704,-2663.0694573,0.000431,60]
[358642723,1745331050718,-11691.59799154,0.000431,60]
[358642724,1745331050729,-178.927859,0.000431,14]
[358642725,1745331050740,-178.927859,0.000431,14]
[358642726,1745331050751,-151.0,0.000431,14]
[358642727,1745331050761,-5564.0,0.000431,5]
[358642728,1745331050772,-170.0,0.00043151,90]
[358642729,1745331050783,-166.0,0.00043151,90]
[358642730,1745331050795,-169.01573,0.00043288,30]
[358642731,1745331050807,-167.36377,0.00043359,2]
[358642732,1745331050818,-15120.1502782,0.00043411,5]
[358642733,1745331050831,-376.3648002,0.00043411,5]
[358642734,1745331050891,-3097.4849216,0.00043411,5]
[358642735,1745331050902,-169.01573,0.00043488,30]
[358642736,1745331050913,-1333.0,0.00043562,120]
[358642737,1745331050923,-518.62,0.000436,120]
[358642738,1745331050935,-1295.77,0.000436,120]
[358642739,1745331050945,-169.01573,0.00043688,30]
[358642740,1745331050956,-457.22734863,0.000437,120]
[358642741,1745331050966,-2000.0,0.00043797,8]
[358642742,1745331050977,-401.52790552,0.00043835,120]
[358642744,1745331109704,200.0,0.00047104,30]
[358642746,1745331142874,201.22249002,0.00019799,5]
[358642748,1745331160833,1404.44671847,0.00019799,5]
[358642751,1745331235838,1000.0,0.00047108,30]
[358642752,1745331236547,1000.0,0.00047108,30]
[358642753,1745331237073,1000.0,0.00047108,30]
[358642754,1745331237618,1000.0,0.00047108,30]
[358642755,1745331237971,1000.0,0.00047108,30]
[358642756,1745331303150,454.0,0.00028582,120]
[358642759,1745331423117,475.19551555,0.00047108,120]
[358642760,1745331523893,-2000.0,0.000196,2]
[358642761,1745331547882,-160.46480398,0.00019525,2]
[358642762,1745331547907,-150.0,0.00019625,2]
[358642763,1745331547933,-250.0,0.00019649,2]
[358642764,1745331547959,-900.0,0.00019699,2]
[358642765,1745331547982,-300.0,0.00019699,2]
[358642766,1745331548005,-239.53519602,0.00019699,2]
[358642767,1745331557209,-60.46480398,0.00019699,2]
[358642768,1745331557233,-418.4897,0.000197,2]
[358642769,1745331557257,-1361.8318,0.000197,2]
[358642770,1745331557281,-159.21369602,0.000197,2]
[358642771,1745331566732,-655.26630398,0.000197,2]
[358642772,1745331566755,-263.0498,0.000197,2]
[358642773,1745331566777,-160.46480397,0.000197,2]
[358642774,1745331566801,-921.21909205,0.000197,2]
[358642775,1745331578858,-2000.0,0.000196,2]
[358642776,1745331586969,-1612.01424383,0.000196,2]
[358642777,1745331586996,-387.98575617,0.000197,2]
[358642778,1745331595353,-370.55403773,0.000197,2]
[358642779,1745331595377,-1629.44596227,0.000197,2]
[358642780,1745331603144,296.7600407,0.00028582,120]
[358642781,1745331603894,-378.06893773,0.000197,2]
[358642782,1745331603931,-150.0,0.00019708,2]
[358642783,1745331603957,-250.0,0.00019715,2]
[358642784,1745331603985,-150.0,0.00019761,2]
[358642785,1745331604011,-662.13078995,0.0001979,2]
[358642786,1745331604036,-409.80027232,0.00019799,2]
[358642787,1745331613280,799.22,0.0001979,3]
[358642788,1745331620677,-433.19972768,0.00019799,2]
[358642789,1745331620701,-300.0,0.00019799,2]
[358642790,1745331620725,-266.80027232,0.00019799,2]
[358642791,1745331682617,200.95,0.00018967,2]
[358642793,1745331871846,-217.44587564,0.000196,2]
[358642794,1745331871868,-150.0,0.0001965,2]
[358642795,1745331871891,-300.0,0.00019699,2]
[358642796,1745331871913,-663.0695,0.000197,2]
[358642797,1745331871935,-2938.469,0.000197,2]
[358642798,1745331871958,-731.01562436,0.000197,2]
[358642799,1745331906014,-268.98437564,0.000197,2]
[358642800,1745331906040,-300.0,0.00019799,2]
[358642801,1745331906066,-300.0,0.00019799,2]
[358642802,1745331906093,-900.0,0.00019799,2]
[358642803,1745331906118,-1231.01562436,0.000198,2]
[358642804,1745331917020,154.0,0.00047063,120]
[358642805,1745331927829,58427.49169221,0.00025,120]
[358642806,1745331927856,5000.0,0.00025,120]
[358642807,1745331927882,2300.51117313,0.00025,120]
[358642808,1745331957771,6206.22557392,0.00047063,30]
[358642809,1745331959248,170.42,0.00027852,120]
[358642810,1745331971366,4580.99712637,0.000199,3]
[358642812,1745332029060,271.67039873,0.00047063,120]
[358642837,1745332128255,1013.0,0.0002,6]
[358642839,1745332131079,500.0,0.00047063,30]
[358642840,1745332131135,359.18845889,0.0002,90]
[358642841,1745332132026,171.7879745,0.00013368,2]
[358642846,1745332202703,2000.0,0.0002,4]
[358642847,1745332205446,100000.0,0.00047063,30]
[358642854,1745332232300,-500.0,0.000197,2]
[358642855,1745332232312,-319.33484271,0.000197,2]
[358642856,1745332232394,-1808.71537973,0.000197,2]
[358642857,1745332232404,-500.0,0.00019773,2]
[358642858,1745332232415,-500.0,0.00019773,2]
[358642859,1745332232425,-500.0,0.00019773,2]
[358642860,1745332232434,-300.0,0.00019798,2]
[358642861,1745332232444,-300.0,0.00019799,2]
[358642862,1745332232453,-900.0,0.00019799,2]
[358642863,1745332232463,-234.0,0.00019799,2]
[358642864,1745332232472,-150.0,0.000198,2]
[358642865,1745332232482,-20983.09475103,0.000198,2]
[358642866,1745332232493,-4995.8271819,0.000198,2]
[358642867,1745332232505,-3748.73331426,0.000198,2]
[358642868,1745332232517,-640.54032554,0.000198,2]
[358642869,1745332232530,-653.76529031,0.000198,2]
[358642870,1745332232550,-183624.1266126,0.000198,2]
[358642871,1745332232559,-310.7177,0.000198,2]
[358642872,1745332232569,-861.4919,0.000198,2]
[358642873,1745332232580,-4558.83468875,0.000198,2]
[358642874,1745332232590,-10885.05468961,0.000198,2]
[358642875,1745332232599,-183.0,0.00019872,2]
[358642876,1745332232608,-1000.0,0.00019886,2]
[358642878,1745332232618,-7757.6001,0.000199,2]
[358642880,1745332232627,-4142.06304177,0.000199,2]
[358642882,1745332232637,-666.90839622,0.000199,2]
[358642883,1745332232646,-177.7355207,0.000199,2]
[358642885,1745332232655,-1184.47806658,0.000199,2]
[358642886,1745332232664,-168.96440878,0.00019973,2]
[358642887,1745332232674,-500.0,0.00019973,2]
[358642888,1745332232683,-500.0,0.00019973,2]
[358642889,1745332232693,-223.32791605,0.0001999,2]
[358642890,1745332232706,-300.0,0.00019999,2]
[358642891,1745332232716,-500.0,0.00019999,2]
[358642892,1745332232726,-500.0,0.00019999,2]
[358642893,1745332232735,-182.77594139,0.00019999,2]
[358642895,1745332232746,-388.01528968,0.00019999,2]
[358642898,1745332232755,-282.94545693,0.00019999,2]
[358642901,1745332232764,-75304.45643025,0.0002,2]
[358642903,1745332232776,-718.30226286,0.0002,2]
[358642906,1745332232800,-548.87714316,0.0002,2]
[358642954,1745332238763,-151.56608142,0.000199,2]
[358642955,1745332238774,-8141.89624412,0.0002,2]
[358642956,1745332238874,-2857880.19682076,0.0002,2]
[358642959,1745332238887,-717215.40192982,0.0002,2]
[358642961,1745332238897,-20164.81324046,0.0002,2]
[358642963,1745332238906,-10000.0,0.0002,2]
[358642965,1745332238916,-4298.67101222,0.0002,2]
[358642967,1745332238926,-8767.13203376,0.0002,2]
[358642969,1745332238937,-2221926.45677462,0.0002,2]
[358643129,1745332240706,-452.03,0.0002,2]
[358643158,1745332241052,-1826.08757655,0.0002,2]
[358643374,1745332243352,-903.87,0.0002,2]
[358643672,1745332246443,-1648.3,0.0002,2]
[358643693,1745332246651,-3902.97765931,0.0002,2]
[358643698,1745332246687,-994.55307569,0.0002,2]
[358644080,1745332361806,2000.0,0.00047065,120]
[358644081,1745332442076,2000.0,0.00047104,90]
[358644083,1745332485262,500000.0,0.00047104,30]
[358644084,1745332502169,300716.27638382,0.00047104,30]
[358644085,1745332543585,1000.0,0.00047104,30]
[358644086,1745332544162,1000.0,0.00047104,30]
[358644087,1745332544788,1000.0,0.00047104,30]
[358644088,1745332545335,1000.0,0.00047104,30]
[358644089,1745332545892,1000.0,0.00047104,30]
[358644090,1745332546524,1000.0,0.00047104,30]
[358644091,1745332547087,1000.0,0.00047104,30]
[358644092,1745332547643,1000.0,0.00047104,30]
[358644093,1745332548497,1000.0,0.00047104,30]
[358644094,1745332549368,1000.0,0.00047104,30]
[358644095,1745332550350,1000.0,0.00047104,30]
[358644096,1745332550927,1000.0,0.00047104,30]
[358644097,1745332551503,1000.0,0.00047104,30]
[358644098,1745332552336,1000.0,0.00047104,30]
[358644099,1745332553147,1000.0,0.00047104,30]
[358644100,1745332553688,1000.0,0.00047104,30]
[358644101,1745332554252,1000.0,0.00047104,30]
[358644102,1745332554934,1000.0,0.00047104,30]
[358644103,1745332555905,1000.0,0.00047104,30]
[358644104,1745332556628,1000.0,0.00047104,30]
[358644105,1745332557613,1000.0,0.00047104,30]
[358644106,1745332558200,1000.0,0.00047104,30]
[358644107,1745332559489,1000.0,0.00047104,30]
[358644108,1745332560258,1000.0,0.00047104,30]
[358644109,1745332560847,1000.0,0.00047104,30]
[358644112,1745332561538,1000.0,0.00047104,30]
[358644113,1745332562095,1000.0,0.00047104,30]
[358644114,1745332562879,1000.0,0.00047104,30]
[358644115,1745332563811,1000.0,0.00047104,30]
[358644116,1745332564382,884.92530699,0.00047104,30]
[358644118,1745332596268,2000.0,0.00047104,30]
[358644120,1745332931958,1020.0,0.00047049,30]
[358644121,1745332972843,1201.91,0.00018305,2]
[358644123,1745333013096,8016.90488461,0.00047049,30]
[358644124,1745333057499,5000.0,0.00047049,31]
[358644126,1745333218984,500.0,0.00047049,120]
[358644127,1745333219238,500.0,0.00047049,120]
[358644128,1745333219547,500.0,0.00047049,120]
[358644129,1745333219799,500.0,0.00047049,120]
[358644130,1745333293616,6653.0,0.00047049,30]
[358644132,1745333345492,1000.0,0.00047049,30]
[358644133,1745333413781,-181.44908249,0.00019181,2]
[358644142,1745333431605,-351.979657,0.00019181,2]
[358644143,1745333431619,-3076.79122351,0.00019181,2]
[358644144,1745333431630,-4188.41368615,0.00019278,2]
[358644145,1745333431641,-150.0,0.00019328,2]
[358644146,1745333431651,-250.0,0.00019378,2]
[358644147,1745333431661,-1035.66,0.00019397,2]
[358644148,1745333431671,-150.0,0.00019417,2]
[358644149,1745333431681,-250.0,0.00019478,2]
[358644150,1745333431691,-818.10055067,0.00019577,2]
[358644151,1745333431701,-900.0,0.00019599,2]
[358644152,1745333431711,-300.0,0.00019599,2]
[358644153,1745333431721,-175.938,0.000196,2]
[358644154,1745333431731,-1980.621,0.000196,2]
[358644155,1745333431741,-6334.48,0.00019629,2]
[358644156,1745333431750,-264.0592,0.000197,2]
[358644157,1745333431760,-452.27,0.000197,2]
[358644158,1745333431770,-191.01425692,0.00019775,2]
[358644159,1745333431780,-818.10055067,0.0001985,2]
[358644160,1745333431790,-1000.0,0.00019888,2]
[358644161,1745333431800,-856.8399,0.000199,2]
[358644162,1745333431810,-507.77188451,0.00019973,2]
[358644163,1745333431820,-306.21041773,0.00019973,2]
[358644164,1745333431830,-361.74088993,0.00019973,2]
[358644165,1745333431840,-500.0,0.00019973,2]
[358644166,1745333431850,-8142.27904078,0.0001999,2]
[358644167,1745333431862,-523.78191945,0.0001999,2]
[358644168,1745333431891,-684.18243354,0.0001999,2]
[358644169,1745333431901,-195.8,0.0001999,2]
[358644170,1745333431911,-195.8,0.0001999,2]
[358644171,1745333431920,-195.8,0.0001999,2]
[358644172,1745333431930,-195.8,0.0001999,2]
[358644173,1745333431939,-158413.82231357,0.0002,2]
[358644174,1745333431954,-9017.51308104,0.0002,2]
[358644175,1745333431970,-550.72306764,0.0002,2]
[358644176,1745333431990,-894634.50113869,0.0002,2]
[358644177,1745333431999,-12160.11778225,0.00020099,2]
[358644375,1745333437862,-6456.5387745,0.00020099,2]
[358644376,1745333437996,-481.14645736,0.00020099,2]
[358644574,1745333439860,-861.10386402,0.00020099,2]
[358644578,1745333439873,-1340.42499998,0.00020099,2]
[358644606,1745333440109,-2164.97003779,0.00020099,2]
[358644611,1745333440154,-1448.46281644,0.00020099,2]
[358644884,1745333442706,-271.535,0.000199,2]
[358644887,1745333442729,-26046.09890578,0.00020099,2]
[358644891,1745333442750,-1965.95803692,0.000201,2]
[358644894,1745333442768,-318.26803772,0.000203,2]
[358644896,1745333442784,-500.1,0.00020365,2]
[358644899,1745333442805,-1201.91,0.00020569,2]
[358644903,1745333442825,-7221.07532445,0.000209,3]
[358644906,1745333442845,-250.0,0.00021,2]
[358644909,1745333442866,-348.27615131,0.00021026,2]
[358644912,1745333442884,-250.0,0.00021206,2]
[358644915,1745333442905,-150.0,0.00021206,2]
[358644917,1745333442919,-150.0,0.00021263,2]
[358644920,1745333442941,-250.0,0.00021266,2]
[358644923,1745333442954,-1067.76732771,0.00021299,2]
[358644926,1745333442971,-420.0,0.0002135,2]
[358644929,1745333442991,-1260.0,0.00021453,2]
[358644931,1745333443007,-193.66,0.00021481,2]
[358644934,1745333443030,-250.0,0.00021663,7]
[358644937,1745333443047,-150.0,0.00021699,2]
[358644940,1745333443063,-1155.38,0.0002172,2]
[358644942,1745333443080,-9999.99,0.00021757,2]
[358644945,1745333443099,-9999.99,0.00021757,2]
[358644948,1745333443117,-150.99,0.00021757,2]
[358644950,1745333443136,-296.23,0.00021757,2]
[358644953,1745333443153,-452.21,0.00021757,2]
[358644956,1745333443171,-2893.64,0.00021757,2]
[358644959,1745333443189,-691.92,0.00021757,2]
[358644961,1745333443207,-234.41,0.00021757,2]
[358644964,1745333443224,-999.99,0.00021757,2]
[358644967,1745333443239,-387.82,0.00021757,2]
[358644970,1745333443257,-3091.64,0.00021797,2]
[358644973,1745333443274,-1077.02564987,0.00022,14]
[358644978,1745333443290,-300.66,0.00022,2]
[358644983,1745333443307,-500.0,0.00022017,2]
[358644986,1745333443324,-500.0,0.00022017,2]
[358644988,1745333443341,-200.0,0.00022163,2]
[358644991,1745333443357,-501.61566963,0.000223,2]
[358644994,1745333443374,-314.93969992,0.000223,2]
[358644997,1745333443394,-1000.0,0.00022374,2]
[358645000,1745333443412,-2900.0,0.000225,15]
[358645002,1745333443429,-1201.91,0.00022833,2]
[358645005,1745333443445,-1000.0,0.00023,14]
[358645008,1745333443462,-300.0,0.00023,2]
[358645010,1745333443478,-587.0,0.00023257,2]
[358645013,1745333443495,-1965.95803692,0.000233,2]
[358645016,1745333443513,-1763.0,0.00023482,2]
[358645019,1745333443529,-344.59,0.00023836,2]
[358645022,1745333443547,-170.42,0.00023873,2]
[358645024,1745333443565,-305.22,0.00024022,2]
[358645027,1745333443582,-3885.3,0.00024174,2]
[358645030,1745333443600,-3564.99864899,0.0002421,2]
[358645033,1745333443616,-500.0,0.00024301,2]
[358645035,1745333443635,-500.0,0.00024773,2]
[358645038,1745333443652,-500.0,0.00024773,2]
[358645041,1745333443670,-500.0,0.00024773,2]
[358645044,1745333443686,-498.088067,0.00024773,2]
[358645046,1745333443704,-1000.0,0.00024799,2]
[358645049,1745333443721,-151.0,0.000248,7]
[358645052,1745333443738,-32687.1248441,0.000248,2]
[358645063,1745333443833,-801.07378664,0.000248,2]
[358645066,1745333443853,-71439.1555087,0.000248,2]
[358645232,1745333445579,-447.40777944,0.000248,2]
[358645234,1745333445592,-3487.07860722,0.000248,2]
[358645237,1745333445604,-4319.5336274,0.000248,2]
[358645239,1745333445616,-22160.23662473,0.000248,2]
[358645249,1745333445712,-49531.30095312,0.000248,2]
[358645252,1745333445725,-935.16438913,0.000248,2]
[358645254,1745333445737,-410.61108996,0.000248,2]
[358645256,1745333445749,-536.82500221,0.000248,2]
[358645259,1745333445765,-2759.37209541,0.000248,2]
[358645261,1745333445776,-23998.18225753,0.000248,2]
[358645263,1745333445788,-2996.94589599,0.000248,2]
[358645267,1745333445811,-1816.594294,0.000248,2]
[358645269,1745333445823,-813.4244,0.000248,2]
[358645279,1745333445914,-5391.64837769,0.000248,2]
[358645281,1745333445926,-2997.28035449,0.000248,2]
[358645871,1745333479561,158.21388,0.000248,34]
[358645872,1745333676046,298.48034331,0.00047049,120]
[358645892,1745334355491,500.0,0.00047045,120]
[358645893,1745334355767,500.0,0.00047045,120]
[358645894,1745334356010,500.0,0.00047045,120]
[358645895,1745334356291,500.0,0.00047045,120]
[358645896,1745334400401,500.0,0.00047045,120]
[358645897,1745334400639,500.0,0.00047045,120]
[358645898,1745334401260,500.0,0.00047045,120]
[358645899,1745334401501,500.0,0.00047045,120]
[358645900,1745334401752,496.84116,0.00047045,120]
[358645901,1745334446923,421.82201649,0.0002,3]
[358645902,1745334460014,578.128,0.00047045,30]
[358645903,1745334499589,576.0,0.00047045,120]
[358645917,1745334631706,-300.79772878,0.0002,2]
[358645918,1745334631716,-54.05437918,0.00020132,2]
[358645919,1745334631729,-195.94562082,0.00020132,2]
[358645920,1745334631738,-150.0,0.00020132,2]
[358645921,1745334631748,-246.94945882,0.0002038,2]
[358645922,1745334631758,-250.0,0.00020688,2]
[358645923,1745334631768,-150.0,0.00022,2]
[358645924,1745334631778,-250.0,0.00022,2]
[358645925,1745334631788,-150.0,0.00022,2]
[358645926,1745334631798,-187.86968766,0.00022065,2]
[358645927,1745334631807,-303.91,0.00022099,2]
[358645928,1745334631817,-1201.95,0.00022115,2]
[358645929,1745334631826,-150.0,0.00022165,2]
[358645930,1745334631836,-499.99,0.00022307,2]
[358645931,1745334631845,-150.99,0.00022307,2]
[358645932,1745334631855,-304.05,0.00022307,2]
[358645933,1745334631864,-170.42,0.00023808,2]
[358645934,1745334631874,-900.0,0.0002393,2]
[358645935,1745334631884,-150.0,0.00023931,2]
[358645936,1745334631895,-202.04,0.00023985,2]
[358645937,1745334631904,-300.0,0.00024104,2]
[358645938,1745334631914,-2466.58,0.00024105,2]
[358645939,1745334631924,-1000.0,0.00024106,2]
[358645940,1745334631934,-429.51,0.00024175,2]
[358645941,1745334631944,-200.0,0.0002419,2]
[358645942,1745334631953,-1201.95,0.00024379,2]
[358645943,1745334631963,-302.12,0.00024678,2]
[358645944,1745334631972,-305.56,0.00024678,2]
[358645945,1745334631982,-150.99,0.00024698,2]
[358645946,1745334631991,-1074.0,0.00024698,2]
[358645947,1745334632001,-6907.98,0.00024698,2]
[358645948,1745334632011,-176.0,0.00024698,2]
[358645949,1745334632020,-351.81639506,0.00024699,2]
[358645950,1745334632032,-9648.17360494,0.00024699,2]
[358645951,1745334632043,-1124.2896,0.000247,2]
[358645952,1745334632052,-1000.0,0.000247,2]
[358645953,1745334632062,-26159.4332,0.000247,2]
[358645954,1745334632071,-999.99,0.000247,2]
[358645955,1745334632081,-250.0,0.00024729,7]
[358645956,1745334632091,-4502.43044846,0.00024826,2]
[358645957,1745334632101,-151.0,0.000249,7]
[358645958,1745334632110,-151.0,0.000249,7]
[358645959,1745334632120,-3924.5003,0.000249,2]
[358645960,1745334632130,-1360.1493,0.000249,2]
[358645961,1745334632141,-6980.37281349,0.000249,5]
[358645962,1745334632151,-514.90291555,0.00024973,2]
[358645963,1745334632161,-500.0,0.00024973,2]
[358645964,1745334632170,-500.0,0.00024973,2]
[358645965,1745334632180,-50000.0,0.00025,10]
[358645966,1745334632190,-999.188999,0.00025,15]
[358645967,1745334632199,-350.0,0.00025,2]
[358645968,1745334632209,-166.66,0.00025004,2]
[358645969,1745334632218,-1000.8298,0.00025088,2]
[358645970,1745334632228,-1220.81757809,0.00025107,2]
[358645971,1745334632238,-26240.0462,0.00025188,2]
[358645972,1745334632247,-250.05,0.00025257,2]
[358645973,1745334632258,-200.0,0.00025288,2]
[358645974,1745334632267,-500.0,0.00025407,2]
[358645975,1745334632277,-166.66,0.00026035,2]
[358645976,1745334632286,-1260.0,0.00026072,2]